bitfinex/quotes_ETHUSD_20250814
["timestamp","ask_amount","ask_price","bid_price","bid_amount"]
[1755197927596,3.615,4539.1,4538.7,2.20327354]
[1755197927932,0.1104,4539.2,4538.8,0.9035]
[1755197928135,0.1104,4539.2,4538.9,0.4495]
[1755197928299,0.1104,4539.2,4538.6,0.1104]
[1755197929433,3.1104,4539.2,4538.6,0.1104]
[1755197929609,3.1104,4539.2,4538.5,0.4495]
[1755197930133,3.0,4539.0,4538.5,0.4495]
[1755197930296,0.1104,4539.2,4538.6,0.9035]
[1755197930697,3.611,4539.1,4538.6,0.8535]
[1755197930994,3.611,4539.1,4538.4,0.1104]
[1755197931204,3.611,4539.1,4537.9,0.454]
[1755197931405,0.1104,4538.7,4538.1,0.1104]
[1755197931932,0.1104,4538.7,4537.8,2.20470499]
[1755197931933,0.55,4538.9,4537.8,0.001]
[1755197932107,0.1104,4538.4,4537.8,0.1114]
[1755197932698,0.1104,4538.4,4537.8,0.5727]
[1755197932891,3.608,4538.3,4537.8,0.1114]
[1755197933135,3.608,4538.3,4537.9,0.4613]
[1755197933341,3.607,4538.3,4538.0,0.918]
[1755197933637,3.607,4538.3,4538.1,0.4567]
[1755197933863,3.607,4538.3,4537.8,0.1114]
[1755197934535,3.461,4538.8,4537.8,0.001]
[1755197934754,0.1104,4537.9,4537.8,0.001]
[1755197934952,9.46806248,4537.9,4537.8,0.001]
[1755197935276,10.02023732,4537.9,4537.8,0.001]
[1755197935419,10.51723732,4537.9,4537.8,0.001]
[1755197936135,10.68260223,4537.9,4537.8,0.001]
[1755197936777,11.14744897,4537.9,4537.8,0.001]
[1755197937157,7.54344897,4537.9,4537.8,0.001]
[1755197937358,11.15144897,4537.9,4537.8,0.001]
[1755197938289,0.55,4537.7,4536.2,0.4567]
[1755197938590,2.75410187,4537.0,4536.2,0.4567]
[1755197938763,0.55,4536.8,4536.2,0.4567]
[1755197938964,3.90018837,4541.6,4536.2,0.4567]
[1755197938965,3.607,4536.7,4536.2,0.4567]
[1755197939194,0.55,4536.5,4535.4,0.4567]
[1755197939367,0.55,4536.3,4535.4,0.4567]
[1755197939565,3.55,4536.3,4535.1,0.4567]
[1755197939781,2.20448833,4536.2,4535.1,2.66170707]
[1755197940076,3.55,4536.3,4535.2,2.20496823]
[1755197940282,3.55,4536.3,4535.3,2.20491548]
[1755197940595,0.55,4536.7,4535.4,0.4613]
[1755197940794,7.154,4536.6,4535.4,0.918]
[1755197940956,0.55,4536.4,4535.4,0.31228926]
[1755197941293,6.603,4536.3,4535.5,0.918]
[1755197941496,0.55,4536.1,4535.5,0.918]
[1755197941794,3.602,4536.0,4535.5,3.12282837]
[1755197941956,3.602,4536.0,4535.6,0.918]
[1755197942152,3.55,4535.9,4534.8,2.2051619]
[1755197942500,3.55,4535.9,4531.9,2.20655993]
[1755197942501,3.604,4535.8,4535.4,2.20483474]
[1755197942689,3.604,4535.7,4535.5,0.918]
[1755197942854,0.55,4536.5,4535.6,0.918]
[1755197943054,0.20255694,4536.4,4535.7,0.4613]
[1755197943256,6.82055694,4536.3,4535.8,0.4567]
[1755197943470,0.20255694,4536.2,4535.8,0.918]
[1755197943673,6.618,4536.3,4535.9,0.918]
[1755197943892,0.55,4536.9,4532.2,0.1]
[1755197944091,0.58990782,4537.3,4523.7,7.7322536]
[1755197944092,0.46732884,4537.5,4536.0,0.918]
[1755197944289,3.81976406,4537.4,4536.5,2.20429681]
[1755197944503,3.81976406,4537.4,4535.1,3.0]
[1755197944504,0.6700929,4537.3,4535.3,2.2048834]
[1755197944714,3.81976406,4537.2,4536.6,0.918]
[1755197945019,3.81976406,4537.2,4535.4,0.1104]
[1755197945020,0.1104,4536.7,4535.4,0.1104]
[1755197945229,0.1104,4536.7,4535.4,0.0604]
[1755197945230,0.1104,4536.0,4535.4,0.0604]
[1755197945441,3.82061543,4536.6,4535.3,3.12291664]
[1755197945442,3.626,4535.9,4535.6,0.1104]
[1755197945713,0.1104,4536.2,4535.7,0.918]
[1755197945918,3.625,4536.0,4535.8,0.4613]
[1755197946101,0.1104,4536.2,4535.2,0.4613]
[1755197946102,3.82862928,4535.9,4535.2,0.4613]
[1755197946419,0.78467109,4535.8,4535.1,0.1104]
[1755197946713,4.29727109,4535.7,4535.2,2.66626263]
[1755197946915,0.20362928,4535.6,4535.3,2.20491596]
[1755197947128,0.20362928,4535.5,4535.2,2.20496987]
[1755197947325,3.623,4535.7,4535.4,0.918]
[1755197947484,0.67531663,4535.6,4535.4,0.4567]
[1755197947673,0.20437427,4535.5,4535.1,0.1104]
[1755197947874,0.20437427,4535.4,4535.3,2.3153258]
[1755197948118,0.47092496,4536.3,4536.1,2.20452893]
[1755197948326,0.2044998,4536.2,4536.1,2.20452893]
[1755197948531,0.1104,4536.0,4535.3,2.70263027]
[1755197948680,0.20450949,4535.9,4535.3,2.2049258]
[1755197948934,3.62,4536.9,4535.5,19.73185106]
[1755197949169,0.67569933,4536.8,4536.7,2.20424537]
[1755197949351,0.67569933,4536.8,4536.7,3.12224537]
[1755197949540,0.67604585,4536.8,4536.7,3.12224537]
[1755197949739,3.622,4537.2,4536.9,2.20411426]
[1755197949965,0.67621451,4537.1,4537.0,2.20409962]
[1755197950273,4.29721451,4537.1,4537.0,3.12209962]
[1755197951461,0.67621451,4537.1,4537.0,3.43430958]
[1755197951774,0.67646472,4537.1,4537.0,3.43430958]
[1755197951974,3.618,4537.4,4537.2,2.20398121]
[1755197952165,0.67655529,4537.3,4537.0,2.51630958]
[1755197952346,3.618,4537.4,4537.1,2.20405104]
[1755197952347,0.67655529,4537.2,4537.1,2.20405104]
[1755197952547,0.20476091,4537.2,4537.1,2.20405104]
[1755197952950,0.20476091,4537.2,4537.1,3.5940871]
[1755197953652,0.20476091,4537.2,4537.1,3.5440871]
[1755197953832,3.614,4537.8,4537.7,2.20375961]
[1755197954039,4.2901397,4537.8,4537.7,0.918]
[1755197954392,4.2901397,4537.8,4537.6,2.20379931]
[1755197954557,4.2891397,4537.7,4537.6,2.20379931]
[1755197954758,4.2891397,4537.7,4537.5,2.20384738]
[1755197954955,0.20494271,4537.6,4537.5,3.12184738]
[1755197955788,0.20494271,4537.6,4537.5,0.918]
[1755197956010,0.20494271,4537.6,4536.9,2.20411092]
[1755197956011,0.67733686,4537.6,4536.9,0.4613]
[1755197956208,0.67735616,4537.5,4536.9,2.66542502]
[1755197956486,0.67735616,4537.4,4536.9,2.66542502]
[1755197956671,0.67735616,4537.3,4537.0,2.2040826]
[1755197956881,3.81194271,4537.2,4537.0,2.6653826]
[1755197957082,3.607,4537.2,4537.0,2.6653826]
[1755197957283,3.607,4537.2,4536.5,0.4613]
[1755197957486,3.607,4537.2,4535.9,0.4567]
[1755197957683,0.4726886,4537.1,4536.0,0.40637]
[1755197957905,3.607,4537.2,4536.9,2.20414768]
[1755197958205,0.47268973,4537.1,4537.0,2.20409962]
[1755197958408,4.07768973,4537.1,4537.0,0.4613]
[1755197958573,4.07768973,4537.1,4536.0,22.34280046]
[1755197958574,4.07768973,4537.1,4536.7,2.20422372]
[1755197958801,4.07768973,4537.1,4536.5,2.20433635]
[1755197958802,0.47268973,4537.0,4536.9,0.1104]
[1755197960911,4.07268973,4537.0,4536.9,0.1104]
[1755197961112,4.07268973,4537.0,4536.9,0.0604]
[1755197961407,4.07468973,4537.0,4536.9,0.0604]
[1755197961997,4.28020581,4537.0,4536.9,0.0604]
[1755197962182,5.9158645,4537.0,4536.1,0.1104]
[1755197962382,2.20427824,4536.7,4536.1,0.1104]
[1755197962583,0.5919616,4536.4,4535.3,0.4728]
[1755197962786,0.67820581,4536.3,4535.4,20.19935106]
[1755197963002,3.597,4536.7,4535.5,0.9403]
[1755197963220,0.67922619,4536.6,4535.5,0.9403]
[1755197963425,0.67922619,4536.5,4536.0,2.20454214]
[1755197963573,0.67922619,4536.4,4536.1,2.2045362]
[1755197963797,0.47364166,4536.3,4536.1,2.2045362]
[1755197964078,4.07064166,4536.2,4536.0,2.20457287]
[1755197964314,3.597,4536.1,4536.0,2.20457287]
[1755197964493,4.07093473,4536.1,4535.9,2.20462271]
[1755197964815,3.597,4536.1,4535.8,2.2046441]
[1755197965010,3.597,4536.1,4535.9,2.20462954]
[1755197965308,3.0,4536.8,4535.9,2.20462954]
[1755197965511,4.27469123,4536.7,4535.8,3.14497243]
[1755197965715,4.27169123,4536.6,4535.8,2.20467243]
[1755197966009,0.67969123,4536.5,4535.8,2.20467243]
[1755197966330,0.67969123,4536.4,4535.7,2.20472534]
[1755197966510,0.67969123,4536.3,4535.7,2.20472534]
[1755197966819,0.67969123,4536.3,4535.4,3.14517663]
[1755197966820,0.20572758,4536.2,4535.4,3.14517663]
[1755197967111,0.20572758,4536.1,4535.7,2.2047273]
[1755197967280,3.591,4536.0,4535.7,2.2047273]
[1755197968208,3.591,4536.0,4535.5,2.2047858]
[1755197968394,3.591,4536.0,4535.7,2.20473018]
[1755197968788,3.591,4536.0,4535.8,2.20467765]
[1755197969017,3.591,4536.0,4535.8,2.67217765]
[1755197969322,3.591,4536.0,4535.7,2.20472258]
[1755197969504,3.591,4536.0,4535.7,2.15472258]
[1755197969881,3.591,4536.0,4535.8,2.20467971]
[1755197971425,0.55,4536.8,4535.8,0.4675]
[1755197971624,0.002,4537.0,4535.9,0.9403]
[1755197971788,3.58,4536.7,4536.3,2.20440144]
[1755197972313,3.58,4536.7,4536.4,2.20438541]
[1755197972496,0.002,4537.0,4536.6,2.20427367]
[1755197972825,3.582,4537.0,4536.6,3.14459396]
[1755197972986,3.582,4537.0,4536.6,3.25499396]
[1755197973692,3.582,4537.0,4536.6,1.0507]
[1755197974220,0.002,4537.0,4536.6,3.25498498]
[1755197974428,0.002,4537.0,4536.6,3.25498807]
[1755197974624,0.002,4537.0,4536.6,1.0507]
[1755197974793,0.002,4537.0,4536.7,0.4675]
[1755197975541,0.002,4537.0,4536.7,2.67173537]
[1755197975889,0.002,4537.0,4536.7,2.62173537]
[1755197976540,0.002,4537.0,4536.9,2.2041482]
[1755197976832,0.002,4537.0,4536.9,2.3145482]
[1755197977207,0.002,4537.0,4536.9,0.1104]
[1755197977510,0.002,4537.0,4536.9,2.3145482]
[1755197977913,0.002,4537.0,4536.9,3.2548482]
[1755197978119,0.002,4537.0,4536.9,3.8008575]
[1755197981354,0.002,4537.0,4536.9,3.2548482]
[1755197981740,0.002,4537.0,4536.6,0.001]
[1755197981895,0.9348,4536.9,4536.6,0.001]
[1755197982101,0.9348,4536.8,4536.6,0.001]
[1755197982404,0.4541,4536.8,4536.6,0.001]
[1755197982797,0.4541,4536.8,4536.2,2.15647685]
[1755197982999,0.9348,4536.7,4535.7,2.20473135]
[1755197983495,0.9348,4536.7,4535.4,3.0]
[1755197983734,3.563,4536.6,4536.2,2.20446881]
[1755197984113,3.563,4536.6,4536.1,2.20453607]
[1755197984314,3.563,4536.6,4536.0,2.20458081]
[1755197984516,0.4541,4536.5,4536.0,2.20458081]
[1755197985325,3.563,4536.6,4536.1,2.20450083]
[1755197985526,4.0171,4536.6,4536.0,2.20457217]
[1755197985854,3.563,4536.6,4536.0,2.20457217]
[1755197986245,3.563,4536.6,4536.2,2.20446816]
[1755197986416,0.4541,4536.8,4535.6,2.20477996]
[1755197986618,0.002,4537.0,4535.7,1.5403293]
[1755197986822,0.002,4537.0,4535.9,2.20463414]
[1755197987129,0.002,4537.0,4536.6,2.2042884]
[1755197987320,0.002,4537.0,4536.4,0.4675]
[1755197987753,0.002,4537.0,4536.9,2.2041482]
[1755197990058,0.002,4537.0,4536.9,2.1541482]
[1755197990746,0.002,4537.0,4536.9,3.0944482]
[1755197991859,0.002,4537.0,4536.9,3.2048482]
[1755197992040,0.002,4537.0,4536.9,2.8054575]
[1755197992253,0.002,4537.0,4536.9,3.7527575]
[1755197992450,0.002,4537.0,4536.9,3.77479898]
[1755197992661,0.002,4537.0,4536.9,3.7527575]
[1755197992873,0.002,4537.6,4537.5,2.20385674]
[1755197993032,0.002,4537.6,4537.5,3.1731953]
[1755197993367,0.002,4537.6,4537.5,3.2835953]
[1755197993565,0.002,4537.6,4537.5,3.26155674]
[1755197996232,0.002,4537.6,4537.5,3.2835953]
[1755197996558,0.002,4537.6,4537.5,5.49547086]
[1755197996760,0.002,4537.6,4537.5,5.4734323]
[1755197996972,0.002,4538.0,4537.5,5.4734323]
[1755197996973,0.002,4538.0,4537.9,2.20366248]
[1755197997149,0.002,4538.0,4537.9,5.75066248]
[1755197997469,0.002,4538.0,4537.9,6.75836248]
[1755197997676,0.002,4538.0,4537.9,7.65457186]
[1755198000385,1e-08,4538.6,4538.0,5.20361392]
[1755198000586,0.0416,4539.6,4539.5,2.20288578]
[1755198000762,0.0416,4539.6,4539.5,5.74488578]
[1755198000967,0.0416,4539.6,4539.5,7.59736985]
[1755198001271,0.0416,4539.6,4539.5,6.65006985]
[1755198002088,0.0416,4539.6,4539.5,2.31328578]
[1755198002249,0.4697,4539.6,4539.5,2.31328578]
[1755198002600,0.4697,4539.6,4539.5,0.1104]
[1755198003773,0.4697,4539.6,4539.5,2.31328578]
[1755198003973,0.0416,4539.6,4539.5,0.1104]
[1755198004348,0.0416,4539.6,4539.5,2.31328578]
[1755198004860,0.0416,4539.6,4539.5,0.1104]
[1755198005060,0.0416,4539.6,4539.5,2.31328578]
[1755198005761,0.0416,4539.6,4539.5,0.1104]
[1755198006183,0.0416,4539.6,4539.5,0.0604]
[1755198006396,0.0416,4539.6,4539.5,2.26328578]
[1755198006860,0.0416,4539.6,4539.5,2.28531463]
[1755198007060,0.0416,4539.6,4539.5,2.26328578]
[1755198010774,0.0436,4539.6,4539.5,2.26328578]
[1755198010974,0.0436,4539.6,4539.5,4.06041247]
[1755198011297,0.0436,4539.6,4539.5,0.1104]
[1755198011720,0.4717,4539.6,4539.5,0.1104]
[1755198012010,0.4717,4539.6,4538.9,0.1104]
[1755198012011,3.26934362,4539.6,4538.9,0.1104]
[1755198012213,3.0,4539.5,4538.9,0.1104]
[1755198012513,3.0,4539.5,4537.8,0.4503]
[1755198012514,2.31339319,4539.3,4538.2,2.20350642]
[1755198012715,2.31339319,4539.3,4538.4,0.1104]
[1755198012875,0.9125,4539.2,4538.4,2.3138162]
[1755198013078,0.4281,4539.2,4538.5,0.02203371]
[1755198013412,0.1104,4539.3,4538.7,2.20322739]
[1755198013572,0.1104,4539.3,4538.7,0.02203274]
[1755198013773,0.1104,4539.3,4538.5,3.525]
[1755198013986,2.9036,4539.6,4539.2,0.1104]
[1755198014186,0.0436,4539.6,4539.5,2.20288578]
[1755198014402,0.0436,4539.6,4539.5,3.26058578]
[1755198014611,0.0436,4539.6,4539.5,2.31328578]
[1755198014797,0.0436,4539.6,4539.5,0.1104]
[1755198015628,0.0436,4539.6,4539.5,2.31328578]
[1755198015833,0.0436,4539.6,4539.5,4.06491499]
[1755198017991,0.0436,4539.6,4539.5,3.11761499]
[1755198018195,0.0436,4539.6,4539.5,6.64161499]
[1755198018805,0.0436,4539.6,4539.5,7.58891499]
[1755198019042,0.0436,4539.6,4539.5,6.64161499]
[1755198019259,0.0436,4539.6,4539.5,5.83728578]
[1755198019622,0.0436,4539.6,4539.5,2.31328578]
[1755198019829,0.0436,4539.6,4539.5,0.1104]
[1755198020170,0.002,4539.6,4539.5,0.0688]
[1755198020521,0.9145,4539.6,4539.5,0.0688]
[1755198021023,0.4301,4539.6,4539.5,0.0688]
[1755198022120,0.002,4539.6,4539.5,0.0688]
[1755198022957,0.4658,4539.6,4539.5,0.0688]
[1755198023727,0.002,4539.6,4539.5,0.0688]
[1755198028006,0.002,4539.6,4539.5,22.1619145]
[1755198028283,0.002,4540.1,4540.0,2.20264317]
[1755198028782,0.002,4540.1,4540.0,3.15284317]
[1755198029340,0.002,4540.1,4540.0,2.20264317]
[1755198029676,0.002,4540.1,4540.0,3.94457872]
[1755198031637,0.002,4540.1,4539.9,3.512]
[1755198031638,0.002,4540.1,4539.6,2.20278939]
[1755198031775,0.002,4540.1,4539.5,2.20288578]
[1755198032292,0.002,4540.1,4539.9,2.20265277]
[1755198032810,0.002,4540.1,4540.0,2.20264317]
[1755198033021,0.002,4540.1,4540.0,3.15284317]
[1755198033168,0.002,4540.1,4540.0,4.03909978]
[1755198033363,0.002,4540.1,4540.0,3.08889978]
[1755198033582,0.002,4540.1,4540.0,2.20264317]
[1755198034608,0.002,4540.1,4539.5,3.506]
[1755198034907,0.4658,4540.1,4539.6,2.20283622]
[1755198035214,0.4658,4540.1,4539.9,2.202691]
[1755198035513,0.002,4540.1,4539.6,2.20281598]
[1755198035864,0.002,4540.1,4539.6,1.1704816]
[1755198036081,0.4658,4540.1,4539.6,3.503]
[1755198036302,0.4638,4540.0,4539.6,3.503]
[1755198036513,0.4638,4540.0,4539.0,0.001]
[1755198036514,0.4638,4540.0,4539.3,2.20298073]
[1755198036895,0.4638,4540.0,4539.4,2.20293003]
[1755198037065,0.002,4540.1,4539.5,0.4717]
[1755198037270,0.002,4540.1,4539.8,2.20271984]
[1755198037470,0.002,4540.1,4539.9,2.20268557]
[1755198037665,0.002,4540.1,4539.6,3.504]
[1755198037918,0.002,4540.1,4539.7,2.20278873]
[1755198038112,0.002,4540.1,4540.0,0.1104]
[1755198038483,0.002,4540.1,4540.0,6.43748253]
[1755198038689,0.002,4540.1,4540.0,6.8871561]
[1755198039069,0.002,4540.1,4540.0,9.8871561]
[1755198039822,1e-08,4540.1,4540.0,9.8871561]
[1755198041117,0.002,4540.6,4540.5,2.20240061]
[1755198041310,0.002,4540.6,4540.5,26.60769173]
[1755198041682,0.002,4540.6,4540.5,29.60769173]
[1755198042806,0.002,4540.6,4540.5,2.20240061]
[1755198045221,0.002,4540.6,4540.1,2.20259465]
[1755198045439,0.4638,4540.5,4540.1,3.501]
[1755198045587,0.4638,4540.5,4540.3,2.20248844]
[1755198045790,0.002,4540.6,4540.1,3.501]
[1755198046031,0.002,4540.6,4539.5,3.39757]
[1755198046032,0.002,4540.6,4540.5,2.20240061]
[1755198046195,0.002,4540.6,4540.5,5.70340061]
[1755198046388,0.002,4540.6,4540.5,6.65360061]
[1755198046590,0.002,4540.6,4540.5,5.70340061]
[1755198046798,0.002,4540.6,4540.5,3.501]
[1755198047109,0.002,4540.6,4540.3,2.20245772]
[1755198047110,0.4658,4540.6,4540.3,2.2024961]
[1755198047313,0.002,4540.6,4540.4,2.20244912]
[1755198047547,0.002,4540.6,4540.2,3.502]
[1755198047698,0.002,4540.6,4540.4,2.20240372]
[1755198048231,0.4658,4540.6,4540.2,3.502]
[1755198048396,0.4658,4540.6,4540.4,2.20244611]
[1755198048597,0.002,4540.6,4540.5,0.1104]
[1755198050060,0.958,4540.6,4540.2,0.1104]
[1755198050224,0.4638,4540.5,4540.2,0.1104]
[1755198051224,0.4942,4540.6,4540.2,0.1104]
[1755198051426,0.956,4540.5,4540.2,0.1104]
[1755198051658,0.9291,4540.4,4540.2,0.1104]
[1755198051849,0.4696,4540.3,4540.2,0.1104]
[1755198052026,0.4696,4540.3,4540.0,0.1104]
[1755198053363,2.9724,4540.6,4540.0,0.1104]
[1755198055458,2.9724,4540.6,4540.0,2.31303841]
[1755198055633,2.9724,4540.6,4540.0,0.1104]
[1755198056269,2.862,4540.6,4540.0,0.1104]
[1755198056944,2.862,4540.6,4540.0,2.31303188]
[1755198057145,2.862,4540.6,4540.0,0.1104]
[1755198057559,2.862,4540.6,4540.0,0.39924207]
[1755198058384,2.862,4540.6,4540.0,2.60188423]
[1755198058733,2.862,4540.6,4540.0,0.39924207]
[1755198059268,2.862,4540.6,4540.0,0.83144207]
[1755198060092,2.862,4540.6,4540.2,2.20253778]
[1755198060245,2.862,4540.6,4540.5,0.1104]
[1755198060431,0.002,4540.7,4540.6,2.20235211]
[1755198060632,1e-08,4541.0,4540.9,2.20220661]
[1755198060942,0.002,4541.5,4540.9,2.20220661]
[1755198060943,1e-08,4542.0,4541.9,2.20172174]
[1755198061148,1e-08,4542.0,4541.9,27.08474152]
[1755198061364,1e-08,4542.0,4541.9,27.06272431]
[1755198061557,1e-08,4542.0,4541.9,7.33187325]
[1755198061945,1e-08,4542.0,4541.9,6.43407325]
[1755198062785,1e-08,4542.0,4541.9,7.33187325]
[1755198063593,1e-08,4542.0,4541.9,2.94207325]
[1755198063886,1e-08,4542.0,4541.9,2.20172174]
[1755198064034,1e-08,4542.0,4541.9,5.69172174]
[1755198064441,1e-08,4542.0,4541.9,6.58952174]
[1755198066300,0.4696,4544.2,4543.2,2.20106363]
[1755198066481,0.4696,4544.2,4543.2,5.69006363]
[1755198066679,0.4696,4544.2,4543.2,5.69008349]
[1755198066840,0.4696,4544.2,4543.4,2.20098959]
[1755198067190,0.4696,4544.2,4543.2,5.69004384]
[1755198067377,0.4696,4544.2,4543.2,3.489]
[1755198067779,0.4696,4544.2,4543.4,2.20099234]
[1755198068273,0.4696,4544.2,4543.3,2.20104329]
[1755198068461,0.4696,4544.6,4543.5,2.20093197]
[1755198068641,0.4696,4544.6,4543.6,2.20089796]
[1755198068846,0.4595,4544.5,4542.6,0.4322]
[1755198069061,0.4696,4544.4,4542.7,3.487]
[1755198069265,5.20055894,4544.3,4543.1,2.20112136]
[1755198069597,0.4696,4544.2,4543.1,5.68812136]
[1755198069966,2.67022863,4544.2,4543.0,2.20117989]
[1755198070182,2.20079548,4543.9,4542.0,0.4322]
[1755198070387,0.9291,4543.8,4542.2,3.0]
[1755198070567,0.4595,4543.8,4542.8,2.20127944]
[1755198070770,0.4696,4543.7,4543.2,0.1104]
[1755198071098,0.9291,4543.6,4543.2,0.1104]
[1755198071257,0.1104,4543.8,4543.2,0.1104]
[1755198071596,0.9291,4543.5,4543.2,0.1104]
[1755198071890,0.9291,4543.4,4542.7,3.485]
[1755198072204,1.0395,4543.4,4542.8,0.1104]
[1755198073758,3.8995,4543.4,4542.8,0.1104]
[1755198073963,3.44,4543.4,4542.8,0.1104]
[1755198074601,3.44,4543.4,4542.0,0.4322]
[1755198074602,2.9704,4543.4,4542.4,3.479]
[1755198074808,2.9704,4543.4,4542.6,2.31174602]
[1755198075520,2.9704,4543.4,4542.6,0.1104]
[1755198075704,0.4696,4543.3,4542.6,0.1104]
[1755198075877,0.9291,4543.3,4542.6,0.1104]
[1755198076284,2.20125328,4542.9,4541.7,5.67977764]
[1755198076592,0.9291,4542.8,4542.3,0.1104]
[1755198077009,0.4696,4542.7,4542.3,0.1104]
[1755198077518,0.4696,4542.6,4542.3,0.1104]
[1755198078072,0.1104,4542.9,4542.3,0.1104]
[1755198078473,0.1104,4542.9,4542.3,2.31191718]
[1755198078716,2.862,4543.4,4542.1,0.4656]
[1755198078931,2.9724,4543.4,4542.8,0.1104]
[1755198079082,2.862,4543.4,4542.8,0.1104]
[1755198079296,2.862,4543.4,4542.9,0.4322]
[1755198079643,2.862,4543.4,4542.8,0.576]
[1755198079938,0.002,4543.4,4543.3,2.31144329]
[1755198080110,0.002,4543.4,4543.3,3.75028164]
[1755198080723,0.002,4543.4,4543.3,2.31144329]
[1755198081105,0.002,4543.4,4543.3,3.20924329]
[1755198081501,0.002,4543.4,4543.3,6.68324329]
[1755198082416,0.002,4543.4,4543.3,9.68324329]
[1755198084332,0.002,4543.4,4543.3,3.20924329]
[1755198084532,0.002,4543.4,4543.3,5.78544329]
[1755198084832,0.002,4543.4,4543.3,6.69654329]
[1755198085432,0.002,4543.4,4543.3,7.58631041]
[1755198086441,0.002,4543.4,4543.3,10.58631041]
[1755198086644,0.002,4544.7,4544.6,2.20041367]
[1755198087069,0.002,4544.7,4544.6,0.1104]
[1755198087218,0.4321,4544.7,4544.6,0.1104]
[1755198087418,0.9059,4544.7,4544.4,0.1104]
[1755198087659,0.4301,4544.6,4544.4,0.1104]
[1755198088249,3.2901,4544.6,4544.4,0.1104]
[1755198090823,2.86,4544.6,4544.4,2.31088548]
[1755198091023,2.862,4544.7,4544.5,2.20046209]
[1755198091262,2.862,4544.7,4544.4,0.1104]
[1755198092364,2.862,4544.7,4544.4,2.31090618]
[1755198092767,2.862,4544.7,4544.4,0.1104]
[1755198093739,0.4301,4544.6,4544.1,3.465]
[1755198093940,0.4301,4544.6,4544.2,0.1104]
[1755198094964,0.9039,4544.5,4543.6,2.20086017]
[1755198095167,2.86,4544.4,4544.0,0.1104]
[1755198095378,0.4301,4544.3,4544.0,0.1104]
[1755198095753,2.86,4544.4,4544.0,0.1104]
[1755198095979,2.86,4544.4,4544.1,4.3741]
[1755198096188,2.86,4544.4,4544.3,0.1104]
[1755198097377,2.862,4544.6,4544.3,0.1104]
[1755198099377,2.862,4544.6,4544.4,3.11156353]
[1755198099580,2.862,4544.6,4544.5,2.20046209]
[1755198099906,2.862,4544.6,4544.5,7.07281394]
[1755198099907,0.002,4544.6,4544.5,7.07281394]
[1755198100083,0.002,4544.6,4544.5,7.18321394]
[1755198100969,0.002,4544.6,4544.5,5.77386209]
[1755198102111,0.002,4544.6,4544.5,6.68496209]
[1755198102316,0.002,4545.6,4544.5,6.68496209]
[1755198102317,2.86,4547.9,4544.7,0.55]
[1755198102489,0.4301,4547.4,4546.9,0.1096]
[1755198102690,3.0,4547.3,4546.3,3.468]
[1755198102901,0.1096,4547.0,4546.4,0.1096]
[1755198103105,0.4301,4546.9,4546.4,0.1096]
[1755198103380,0.4301,4546.8,4546.4,0.1096]
[1755198103907,0.1096,4547.0,4546.4,0.1096]
[1755198104215,0.1096,4547.5,4546.7,0.1096]
[1755198104375,0.1096,4547.5,4547.0,2.19923862]
[1755198104580,0.1096,4547.8,4547.2,0.1096]
[1755198104785,0.1096,4548.1,4547.5,0.1096]
[1755198104991,2.19891258,4547.8,4546.8,3.471]
[1755198105311,1.0135,4547.7,4547.0,0.1096]
[1755198106412,0.5834,4547.7,4547.0,0.1096]
[1755198106612,2.62910595,4547.6,4547.0,0.1096]
[1755198106922,2.19906855,4547.4,4546.6,0.1096]
[1755198107224,0.1096,4546.9,4545.4,3.47]
[1755198107539,2.19969497,4546.1,4545.7,0.1096]
[1755198107694,3.10364325,4546.0,4545.7,0.1096]
[1755198108048,0.9039,4545.9,4545.3,0.1104]
[1755198108503,0.4301,4545.9,4545.3,0.1104]
[1755198108824,2.62989331,4545.9,4545.3,0.1104]
[1755198109012,2.62989331,4545.9,4544.6,3.47]
[1755198109013,0.4301,4545.9,4544.6,3.47]
[1755198109213,0.1096,4545.7,4545.1,2.31056272]
[1755198109420,0.1096,4545.7,4545.1,0.1104]
[1755198109828,0.1096,4545.7,4545.1,2.31056012]
[1755198110224,6.9418,4546.2,4545.1,0.5504]
[1755198110225,6.468,4546.2,4545.1,0.5504]
[1755198110425,0.1096,4546.0,4545.1,0.5504]
[1755198110643,3.468,4546.2,4545.2,0.4711]
[1755198110941,3.5776,4546.2,4545.5,0.1096]
[1755198111122,0.1096,4546.2,4545.5,0.1096]
[1755198111435,0.4738,4547.3,4545.2,0.9111]
[1755198111436,2.19956135,4546.4,4546.1,0.1096]
[1755198111636,0.4681,4546.3,4545.5,2.19996936]
[1755198111837,0.4681,4546.3,4545.9,0.1096]
[1755198112444,2.19945575,4546.6,4545.9,0.1096]
[1755198112648,2.19955247,4546.4,4545.9,0.1096]
[1755198112851,2.19949714,4546.5,4545.9,0.1096]
[1755198113063,0.5777,4546.7,4545.9,0.1096]
[1755198113340,0.1096,4546.7,4545.9,0.1096]
[1755198113744,0.1096,4546.7,4546.1,2.19966373]
[1755198114249,3.5766,4546.9,4546.3,0.1096]
[1755198114470,7.47555976,4548.5,4546.3,0.1096]
[1755198114673,0.1096,4547.4,4546.8,0.1096]
[1755198114972,0.1096,4547.4,4545.9,3.468]
[1755198114973,0.1096,4547.4,4545.8,0.4888]
[1755198115277,0.1096,4547.1,4546.6,0.1096]
[1755198115473,0.4681,4547.0,4546.6,0.1096]
[1755198116929,0.1096,4547.1,4546.6,0.1096]
[1755198117247,2.86,4547.0,4546.9,2.19930062]
[1755198117462,2.86,4547.3,4547.0,0.1096]
[1755198117986,2.86,4547.3,4546.3,0.4511]
[1755198118131,0.4681,4547.2,4546.2,0.4888]